fUST/lending_fUST_20250605
["ID","MTS","AMOUNT","RATE_DAILY","PERIOD"]
[364279743,1749057045092,-574.5663848,0.00023799,2]
[364279745,1749057045101,-574.5663848,0.00023799,2]
[364279747,1749057045110,-500.0,0.00023799,2]
[364279749,1749057045120,-574.5663848,0.00023799,2]
[364279750,1749057045129,-574.5663848,0.00023799,2]
[364279752,1749057045139,-574.5663848,0.00023799,2]
[364279754,1749057045148,-574.5663848,0.00023799,2]
[364279756,1749057045158,-574.5663848,0.00023799,2]
[364279758,1749057045167,-211884.29154428,0.000238,3]
[364279760,1749057045177,-151.0,0.000238,7]
[364279762,1749057045186,-151.0,0.000238,7]
[364279764,1749057045195,-151.0,0.000238,7]
[364279766,1749057045205,-151.0,0.000238,7]
[364279768,1749057045214,-284.483668,0.000238,7]
[364279770,1749057045224,-151.0,0.000238,7]
[364279772,1749057045232,-151.0,0.000238,7]
[364279774,1749057045241,-8208.80019219,0.000238,7]
[364279776,1749057045254,-63639.54980781,0.000238,7]
[364279778,1749057045264,-991.63,0.000238,7]
[364279780,1749057045273,-5000.0,0.00023812,2]
[364279782,1749057045282,-218.60636307,0.00023863,2]
[364279784,1749057045292,-628.73,0.00023895,5]
[364279786,1749057045301,-177.17972575,0.000239,4]
[364279788,1749057045310,-177.17972575,0.000239,4]
[364279790,1749057045319,-177.17972575,0.000239,4]
[364279791,1749057045329,-177.17972575,0.000239,4]
[364279793,1749057045338,-177.17972575,0.000239,4]
[364279796,1749057045348,-177.17972575,0.000239,4]
[364279797,1749057045358,-177.17972575,0.000239,4]
[364279800,1749057045369,-177.17972575,0.000239,4]
[364279801,1749057045379,-177.17972575,0.000239,4]
[364279803,1749057045389,-177.17972575,0.000239,4]
[364279805,1749057045399,-177.17972575,0.000239,4]
[364279807,1749057045408,-177.17972575,0.000239,4]
[364279809,1749057045418,-177.17972575,0.000239,4]
[364279811,1749057045427,-177.17972575,0.000239,4]
[364279813,1749057045437,-177.17972575,0.000239,4]
[364279815,1749057045446,-177.17972575,0.000239,4]
[364279817,1749057045457,-177.17972575,0.000239,4]
[364279819,1749057045466,-177.17972575,0.000239,4]
[364279821,1749057045476,-177.17972575,0.000239,4]
[364279823,1749057045485,-177.17,0.000239,4]
[364279825,1749057045495,-413.41936008,0.000239,4]
[364279826,1749057045505,-413.41936008,0.000239,4]
[364279828,1749057045515,-413.41936008,0.000239,4]
[364279831,1749057045525,-413.41936008,0.000239,4]
[364279832,1749057045534,-413.41936008,0.000239,4]
[364279834,1749057045543,-413.41936008,0.000239,4]
[364279836,1749057045553,-413.41936008,0.000239,4]
[364279838,1749057045562,-413.41936008,0.000239,4]
[364279840,1749057045571,-413.41936008,0.000239,4]
[364279842,1749057045581,-413.41936008,0.000239,4]
[364279844,1749057045590,-413.41936008,0.000239,4]
[364279846,1749057045599,-413.41936008,0.000239,4]
[364279848,1749057045612,-413.41936008,0.000239,4]
[364279851,1749057045622,-413.41936008,0.000239,4]
[364279854,1749057045632,-413.41936008,0.000239,4]
[364279857,1749057045642,-413.41936008,0.000239,4]
[364279860,1749057045651,-413.41936008,0.000239,4]
[364279862,1749057045660,-413.41936008,0.000239,4]
[364279864,1749057045669,-162.09685798,0.000239,4]
[364279867,1749057045678,-162.09685798,0.000239,4]
[364279869,1749057045688,-162.09685798,0.000239,4]
[364279872,1749057045697,-162.09685798,0.000239,4]
[364279875,1749057045706,-162.09685798,0.000239,4]
[364279878,1749057045716,-162.09685798,0.000239,4]
[364279881,1749057045725,-162.09685798,0.000239,4]
[364279883,1749057045734,-162.09685798,0.000239,4]
[364279885,1749057045744,-162.09685798,0.000239,4]
[364279887,1749057045754,-162.09685798,0.000239,4]
[364279889,1749057045764,-162.09685798,0.000239,4]
[364279891,1749057045774,-162.09,0.000239,4]
[364279894,1749057045784,-226.93560117,0.000239,4]
[364279897,1749057045795,-226.93560117,0.000239,4]
[364279900,1749057045806,-226.93560117,0.000239,4]
[364279903,1749057045817,-226.93560117,0.000239,4]
[364279906,1749057045827,-226.93560117,0.000239,4]
[364279909,1749057045836,-226.93560117,0.000239,4]
[364279912,1749057045846,-226.93560117,0.000239,4]
[364279915,1749057045855,-226.93560117,0.000239,4]
[364279918,1749057045865,-226.93560117,0.000239,4]
[364279921,1749057045875,-226.93560117,0.000239,4]
[364279924,1749057045885,-226.93560117,0.000239,4]
[364279927,1749057045895,-226.93560117,0.000239,4]
[364279930,1749057045904,-226.93560117,0.000239,4]
[364279933,1749057045914,-226.93560117,0.000239,4]
[364279936,1749057045923,-226.93560117,0.000239,4]
[364279938,1749057045932,-226.93560117,0.000239,4]
[364279940,1749057045942,-226.93560117,0.000239,4]
[364279942,1749057045952,-226.93560117,0.000239,4]
[364279944,1749057045964,-157.19403254,0.000239,4]
[364279946,1749057045974,-157.19403254,0.000239,4]
[364279948,1749057045983,-157.19403254,0.000239,4]
[364279949,1749057045993,-157.19403254,0.000239,4]
[364279950,1749057046003,-157.19403254,0.000239,4]
[364279951,1749057046013,-157.19403254,0.000239,4]
[364279952,1749057046023,-157.19403254,0.000239,4]
[364279953,1749057046032,-157.19403254,0.000239,4]
[364279954,1749057046043,-157.19403254,0.000239,4]
[364279955,1749057046053,-157.19403254,0.000239,4]
[364279956,1749057046063,-157.19403254,0.000239,4]
[364279957,1749057046072,-157.19403254,0.000239,4]
[364279958,1749057046081,-157.19403254,0.000239,4]
[364279959,1749057046091,-157.19403254,0.000239,4]
[364279960,1749057046100,-157.19,0.000239,4]
[364279961,1749057046110,-275.08955694,0.000239,4]
[364279962,1749057046119,-275.08955694,0.000239,4]
[364279963,1749057046130,-275.08955694,0.000239,4]
[364279964,1749057046139,-275.08955694,0.000239,4]
[364279965,1749057046149,-275.08955694,0.000239,4]
[364279966,1749057046158,-275.08955694,0.000239,4]
[364279967,1749057046168,-275.08955694,0.000239,4]
[364279968,1749057046178,-275.08955694,0.000239,4]
[364279969,1749057046189,-275.08955694,0.000239,4]
[364279970,1749057046199,-275.08955694,0.000239,4]
[364279971,1749057046211,-275.08955694,0.000239,4]
[364279972,1749057046220,-275.08955694,0.000239,4]
[364279973,1749057046230,-275.08955694,0.000239,4]
[364279974,1749057046239,-275.08955694,0.000239,4]
[364279975,1749057046249,-275.08955694,0.000239,4]
[364279976,1749057046258,-275.08955694,0.000239,4]
[364279977,1749057046268,-275.08955694,0.000239,4]
[364279979,1749057046383,-275.08955694,0.000239,4]
[364279980,1749057046393,-843.93448134,0.000239,2]
[364279982,1749057046403,-151.0,0.00023925,7]
[364279984,1749057046414,-151.600532,0.00023925,7]
[364279986,1749057046423,-5756.11488538,0.00023925,2]
[364279988,1749057046433,-5000.0,0.00023925,2]
[364279990,1749057046443,-5000.0,0.00023925,2]
[364279992,1749057046454,-413.41936008,0.00023939,4]
[364279994,1749057046463,-226.93560117,0.00023939,4]
[364279997,1749057046473,-275.08955694,0.00023939,4]
[364279999,1749057046484,-151.0,0.00023969,7]
[364280000,1749057046494,-218.60636307,0.00023973,2]
[364280003,1749057046504,-506.65956259,0.00023973,2]
[364280004,1749057046514,-151.0,0.00023981,7]
[364280006,1749057046523,-1000.0,0.00024,24]
[364280009,1749057046533,-3188.11523267,0.00024,2]
[364280013,1749057046563,-430.0,0.00016438,2]
[364280015,1749057046573,-11246.47197955,0.00024,2]
[364280017,1749057046586,-544.66843119,0.00024,2]
[364280019,1749057046598,-936.99585532,0.00024,2]
[364280033,1749057046727,-666.58215861,0.00024,2]
[364280035,1749057046739,-869.25184154,0.00024,2]
[364280038,1749057046751,-3952.92828552,0.00024,2]
[364280041,1749057046772,-97272.78268149,0.00024,2]
[364280046,1749057046812,-20806.48374544,0.00024,2]
[364280048,1749057046823,-151.0,0.00024,7]
[364280050,1749057046832,-151.0,0.00024,7]
[364280052,1749057046842,-151.0,0.00024,7]
[364280054,1749057046852,-2956.96028047,0.00024,2]
[364280064,1749057046952,-430.0,0.00016438,2]
[364280066,1749057046966,-212.90465545,0.00019038,2]
[364280068,1749057046975,-4969.56721995,0.00024,2]
[364283310,1749057327156,7519.756969,0.00015711,2]
[364283311,1749057327177,2480.243031,0.00015711,2]
[364283312,1749057369334,187.26286205,0.00015945,2]
[364283313,1749057431378,154.22519529,6.8e-07,2]
[364283314,1749057498405,3264.2416827,0.00015412,2]
[364283315,1749057669659,222.9246332,0.00015372,2]
[364283324,1749057966251,168.543994,0.00013699,2]
[364283346,1749058154440,1209.57460176,0.00016,2]
[364283347,1749058154466,2102.42539824,0.00016,2]
[364283389,1749058232241,-164.91492304,0.00016286,2]
[364283391,1749058232250,-213.86212324,0.00016334,2]
[364283393,1749058232259,-164.91492304,0.00016335,2]
[364283395,1749058232268,-168.94291983,0.00016337,2]
[364283397,1749058232278,-347.92560577,0.00016426,2]
[364283399,1749058232287,-300.0,0.00016434,2]
[364283400,1749058232296,-300.0,0.00016434,2]
[364283402,1749058232305,-253.0,0.00016434,2]
[364283404,1749058232315,-300.0,0.00016434,2]
[364283405,1749058232324,-300.0,0.00016434,2]
[364283406,1749058232333,-777.0,0.00016434,2]
[364283408,1749058232343,-50000.0,0.00016435,2]
[364283410,1749058232355,-348.82533829,0.00016437,2]
[364283412,1749058232365,-430.0,0.00016438,2]
[364283414,1749058232374,-440.0,0.00016438,2]
[364283416,1749058232385,-430.0,0.00016438,2]
[364283418,1749058232394,-523.83500825,0.00016438,2]
[364283420,1749058232404,-430.0,0.00016438,2]
[364283422,1749058232417,-510.75374426,0.00016438,2]
[364283424,1749058232429,-430.0,0.00016438,2]
[364283426,1749058232439,-309.580068,0.00016438,2]
[364283427,1749058232449,-430.0,0.00016438,2]
[364283428,1749058232458,-400.0,0.00016438,2]
[364283429,1749058232468,-400.0,0.00016438,2]
[364283430,1749058232478,-400.0,0.00016438,2]
[364283431,1749058232487,-400.0,0.00016438,2]
[364283432,1749058232497,-430.0,0.00016438,2]
[364283433,1749058232507,-400.0,0.00016438,2]
[364283434,1749058232517,-400.0,0.00016438,2]
[364283435,1749058232526,-400.0,0.00016438,2]
[364283436,1749058232535,-430.0,0.00016438,2]
[364283437,1749058232545,-430.0,0.00016438,2]
[364283438,1749058232555,-430.0,0.00016438,2]
[364283439,1749058232564,-419.13497932,0.00016438,2]
[364283440,1749058232573,-430.0,0.00016438,2]
[364283441,1749058232583,-430.0,0.00016438,2]
[364283442,1749058232759,-458.34631231,0.00016438,2]
[364283443,1749058232768,-430.0,0.00016438,2]
[364283444,1749058232778,-430.00320769,0.00016438,2]
[364283445,1749058232787,-430.0,0.00016438,2]
[364283446,1749058232796,-350.0,0.00016438,2]
[364283447,1749058232806,-430.0,0.00016438,2]
[364283448,1749058232815,-430.0,0.00016438,2]
[364283449,1749058232825,-400.0,0.00016438,2]
[364283450,1749058232834,-411.35613136,0.00016438,2]
[364283451,1749058232843,-430.0,0.00016438,2]
[364283452,1749058232852,-430.0,0.00016438,2]
[364283453,1749058232862,-430.0,0.00016438,2]
[364283454,1749058232871,-430.0,0.00016438,2]
[364283455,1749058232880,-430.0,0.00016438,2]
[364283456,1749058232889,-419.70368793,0.00016438,2]
[364283457,1749058232899,-430.0,0.00016438,2]
[364283458,1749058232908,-400.0,0.00016438,2]
[364283459,1749058232920,-431.02619174,0.00016438,2]
[364283460,1749058232930,-430.0,0.00016438,2]
[364283461,1749058232940,-430.0,0.00016438,2]
[364283462,1749058232949,-430.0,0.00016438,2]
[364283463,1749058232959,-430.0,0.00016438,2]
[364283464,1749058232969,-430.0,0.00016438,2]
[364283465,1749058232978,-430.0,0.00016438,2]
[364283466,1749058232987,-430.0,0.00016438,2]
[364283467,1749058232997,-430.0,0.00016438,2]
[364283468,1749058233006,-157.29330944,0.00016438,2]
[364283469,1749058233016,-500.0,0.00016438,2]
[364283470,1749058233025,-500.0,0.00016438,2]
[364283471,1749058233035,-233.61538332,0.00016438,2]
[364283472,1749058233045,-430.0,0.00016438,2]
[364283473,1749058233055,-430.0,0.00016438,2]
[364283474,1749058233064,-430.0,0.00016438,2]
[364283475,1749058233074,-470.0,0.00016438,2]
[364283476,1749058233084,-430.0,0.00016438,2]
[364283477,1749058233093,-571.63206686,0.00016438,2]
[364283478,1749058233103,-384.20434416,0.00016438,2]
[364283479,1749058233112,-471.53,0.00016438,2]
[364283480,1749058233122,-440.0,0.00016438,2]
[364283481,1749058233132,-470.0,0.00016438,2]
[364283482,1749058233141,-470.0,0.00016438,2]
[364283483,1749058233151,-430.0,0.00016438,2]
[364283484,1749058233160,-430.0,0.00016438,2]
[364283485,1749058233171,-430.0,0.00016438,2]
[364283486,1749058233181,-430.0,0.00016438,2]
[364283487,1749058233190,-430.0,0.00016438,2]
[364283488,1749058233200,-430.0,0.00016438,2]
[364283489,1749058233210,-430.0,0.00016438,2]
[364283490,1749058233221,-430.0,0.00016438,2]
[364283491,1749058233231,-430.0,0.00016438,2]
[364283492,1749058233241,-430.0,0.00016438,2]
[364283493,1749058233251,-500.0,0.00016438,2]
[364283494,1749058233261,-500.0,0.00016438,2]
[364283495,1749058233271,-500.0,0.00016438,2]
[364283496,1749058233280,-430.0,0.00016438,2]
[364283497,1749058233290,-430.0,0.00016438,2]
[364283498,1749058233300,-430.0,0.00016438,2]
[364283499,1749058233309,-430.0,0.00016438,2]
[364283500,1749058233319,-430.0,0.00016438,2]
[364283501,1749058233329,-430.0,0.00016438,2]
[364283502,1749058233338,-370.0,0.00016438,2]
[364283503,1749058233350,-430.0,0.00016438,2]
[364283504,1749058233360,-430.0,0.00016438,2]
[364283505,1749058233371,-440.0,0.00016438,2]
[364283506,1749058233380,-430.0,0.00016438,2]
[364283507,1749058233391,-430.0,0.00016438,2]
[364283508,1749058233400,-435.12198118,0.00016438,2]
[364283509,1749058233410,-430.0,0.00016438,2]
[364283510,1749058233422,-500.0,0.00016438,2]
[364283511,1749058233432,-430.0,0.00016438,2]
[364283512,1749058233441,-403.59174653,0.00016438,2]
[364283513,1749058233451,-430.0,0.00016438,2]
[364283514,1749058233460,-430.0,0.00016438,2]
[364283515,1749058233470,-430.0,0.00016438,2]
[364283516,1749058233480,-430.0,0.00016438,2]
[364283517,1749058233490,-430.0,0.00016438,2]
[364283518,1749058233504,-430.0,0.00016438,2]
[364283519,1749058233514,-430.0,0.00016438,2]
[364283520,1749058233524,-430.0,0.00016438,2]
[364283521,1749058233534,-430.0,0.00016438,2]
[364283522,1749058233545,-430.0,0.00016438,2]
[364283523,1749058233555,-430.0,0.00016438,2]
[364283524,1749058233565,-430.0,0.00016438,2]
[364283525,1749058233575,-430.0,0.00016438,2]
[364283526,1749058233584,-430.0,0.00016438,2]
[364283527,1749058233594,-430.0,0.00016438,2]
[364283528,1749058233604,-430.0,0.00016438,2]
[364283529,1749058233614,-393.11910756,0.00016438,2]
[364283530,1749058233624,-430.0,0.00016438,2]
[364283531,1749058233635,-430.0,0.00016438,2]
[364283532,1749058233645,-430.0,0.00016438,2]
[364283533,1749058233655,-430.0,0.00016438,2]
[364283534,1749058233664,-430.0,0.00016438,2]
[364283535,1749058233675,-430.0,0.00016438,2]
[364283536,1749058233689,-430.0,0.00016438,2]
[364283537,1749058233699,-430.0,0.00016438,2]
[364283538,1749058233709,-430.0,0.00016438,2]
[364283539,1749058233719,-430.0,0.00016438,2]
[364283540,1749058233729,-430.0,0.00016438,2]
[364283541,1749058233738,-430.0,0.00016438,2]
[364283542,1749058233748,-430.0,0.00016438,2]
[364283543,1749058233758,-430.0,0.00016438,2]
[364283544,1749058233768,-430.0,0.00016438,2]
[364283545,1749058233779,-430.0,0.00016438,2]
[364283546,1749058233790,-430.0,0.00016438,2]
[364283547,1749058233802,-430.0,0.00016438,2]
[364283548,1749058233812,-430.0,0.00016438,2]
[364283549,1749058233823,-430.0,0.00016438,2]
[364283550,1749058233833,-379.19432624,0.00016438,2]
[364283551,1749058233844,-430.0,0.00016438,2]
[364283552,1749058233854,-430.0,0.00016438,2]
[364283553,1749058233864,-430.0,0.00016438,2]
[364283554,1749058233878,-430.0,0.00016438,2]
[364283555,1749058233891,-430.0,0.00016438,2]
[364283556,1749058233901,-430.0,0.00016438,2]
[364283557,1749058233911,-477.41,0.00016438,2]
[364283558,1749058233922,-160.0,0.00016438,2]
[364283559,1749058233932,-430.0,0.00016438,2]
[364283560,1749058233941,-430.0,0.00016438,2]
[364283561,1749058233950,-430.0,0.00016438,2]
[364283562,1749058233959,-430.0,0.00016438,2]
[364283563,1749058233968,-430.0,0.00016438,2]
[364283564,1749058233979,-430.0,0.00016438,2]
[364283565,1749058233989,-430.0,0.00016438,2]
[364283566,1749058233999,-430.0,0.00016438,2]
[364283567,1749058234009,-430.0,0.00016438,2]
[364283568,1749058234019,-376.30547701,0.00016438,2]
[364283569,1749058234028,-430.0,0.00016438,2]
[364283570,1749058234038,-440.0,0.00016438,2]
[364283571,1749058234048,-430.0,0.00016438,2]
[364283572,1749058234059,-400.0,0.00016438,2]
[364283573,1749058234070,-407.96637653,0.00016438,2]
[364283574,1749058234081,-430.0,0.00016438,2]
[364283575,1749058234091,-430.0,0.00016438,2]
[364283576,1749058234102,-408.01880777,0.00016438,2]
[364283577,1749058234112,-430.0,0.00016438,2]
[364283578,1749058234122,-334.96244374,0.00016438,2]
[364283579,1749058234138,-430.0,0.00016438,2]
[364283580,1749058234153,-386.02641612,0.00016438,2]
[364283581,1749058234168,-430.0,0.00016438,2]
[364283582,1749058234182,-430.0,0.00016438,2]
[364283583,1749058234196,-430.0,0.00016438,2]
[364283584,1749058234208,-430.0,0.00016438,2]
[364283585,1749058234219,-430.0,0.00016438,2]
[364283586,1749058234230,-430.0,0.00016438,2]
[364283587,1749058234243,-408.98280923,0.00016438,2]
[364283588,1749058234255,-430.0,0.00016438,2]
[364283589,1749058234267,-430.0,0.00016438,2]
[364283590,1749058234279,-430.0,0.00016438,2]
[364283591,1749058234292,-430.0,0.00016438,2]
[364283592,1749058234305,-430.0,0.00016438,2]
[364283593,1749058234317,-456.89211119,0.00016438,2]
[364283594,1749058234329,-430.0,0.00016438,2]
[364283595,1749058234342,-501.22617306,0.00016438,2]
[364283596,1749058234356,-430.0,0.00016438,2]
[364283597,1749058234368,-430.0,0.00016438,2]
[364283598,1749058234383,-440.0,0.00016438,2]
[364283599,1749058234396,-430.0,0.00016438,2]
[364283600,1749058234409,-430.0,0.00016438,2]
[364283601,1749058234422,-430.0,0.00016438,2]
[364283602,1749058234435,-430.0,0.00016438,2]
[364283603,1749058234447,-430.0,0.00016438,2]
[364283604,1749058234460,-440.0,0.00016438,2]
[364283605,1749058234472,-392.1124176,0.00016712,2]
[364283606,1749058234484,-201.8,0.00016712,2]
[364283607,1749058234496,-440.0,0.00016712,2]
[364283608,1749058234510,-420.0,0.00016712,2]
[364283609,1749058234523,-440.0,0.00016712,2]
[364283610,1749058234535,-440.0,0.00016712,2]
[364283611,1749058234549,-440.0,0.00016986,2]
[364283612,1749058234562,-440.0,0.00016986,2]
[364283613,1749058234572,-420.99,0.00016986,2]
[364283614,1749058234582,-58552.68667785,0.00017,2]
[364283618,1749058238226,-400.0,0.00016438,2]
[364283620,1749058238242,-430.0,0.00016438,2]
[364283622,1749058238253,-676.69158,0.00017,2]
[364283625,1749058238269,-32425.85117453,0.00017,2]
[364283627,1749058238278,-173.785802,0.00017252,2]
[364283629,1749058238287,-440.0,0.0001726,2]
[364283631,1749058238297,-440.0,0.0001726,2]
[364283633,1749058238306,-440.0,0.00017534,2]
[364283635,1749058238316,-440.0,0.00017534,2]
[364283637,1749058238325,-514.05,0.00017808,2]
[364283639,1749058238335,-552.65,0.00017808,2]
[364283641,1749058238345,-862.4770309,0.000179,2]
[364283642,1749058238358,-3193.73686345,0.00018,2]
[364283644,1749058238368,-862.47703085,0.00018141,2]
[364283646,1749058238378,-3312.0,0.000182,2]
[364283648,1749058238390,-862.47703085,0.00018383,2]
[364283649,1749058238399,-862.47703085,0.00018624,2]
[364283650,1749058238409,-862.47703085,0.00018866,2]
[364283651,1749058238419,-703.27873445,0.000189,2]
[364283652,1749058238430,-160.0,0.00019032,2]
[364283653,1749058238441,-229.45591648,0.0001904,2]
[364283654,1749058238450,-12672.94222187,0.0001904,2]
[364283655,1749058238460,-862.47703085,0.00019107,2]
[364283656,1749058238470,-500.0,0.00019178,2]
[364283657,1749058238480,-500.0,0.00019178,2]
[364283658,1749058238489,-500.0,0.00019178,2]
[364283659,1749058238498,-500.0,0.00019178,2]
[364283661,1749058238508,-500.0,0.00019178,2]
[364283662,1749058238518,-153.22485555,0.00019178,2]
[364283664,1749058238527,-500.0,0.00019178,2]
[364283665,1749058238536,-500.0,0.00019178,2]
[364283667,1749058238546,-500.0,0.00019178,2]
[364283668,1749058238555,-500.0,0.00019178,2]
[364283670,1749058238565,-500.0,0.00019178,2]
[364283672,1749058238574,-500.0,0.00019178,2]
[364283674,1749058238584,-500.0,0.00019178,2]
[364283676,1749058238594,-500.0,0.00019178,2]
[364283678,1749058238604,-500.0,0.00019178,2]
[364283680,1749058238614,-500.0,0.00019178,2]
[364283682,1749058238623,-179.427373,0.00019178,2]
[364283684,1749058238633,-862.47703085,0.00019348,2]
[364283686,1749058238642,-862.47703085,0.0001959,2]
[364283688,1749058238652,-204.54873376,0.00019627,2]
[364283690,1749058238662,-461.5,0.00019717,3]
[364283692,1749058238674,-230.75,0.00019717,3]
[364283694,1749058238683,-692.28,0.00019717,3]
[364283696,1749058238693,-430.0,0.00019727,2]
[364283698,1749058238703,-434.15968016,0.00019727,2]
[364283700,1749058238713,-409.77775667,0.00019727,2]
[364283702,1749058238723,-503.76271534,0.00019727,2]
[364283704,1749058238732,-430.0,0.00019727,2]
[364283706,1749058238742,-430.0,0.00019727,2]
[364283708,1749058238752,-505.39024693,0.00019727,2]
[364283710,1749058238762,-430.0,0.00019727,2]
[364283712,1749058238771,-384.78349119,0.00019727,2]
[364283714,1749058238780,-430.0,0.00019727,2]
[364283716,1749058238790,-430.0,0.00019727,2]
[364283717,1749058238799,-430.0,0.00019727,2]
[364283720,1749058238809,-430.0,0.00019727,2]
[364283721,1749058238819,-430.0,0.00019727,2]
[364283722,1749058238829,-419.04785281,0.00019727,2]
[364283723,1749058238839,-430.0,0.00019727,2]
[364283724,1749058238849,-218.52351208,0.00019727,2]
[364283725,1749058238858,-430.0,0.00019727,2]
[364283726,1749058238868,-430.0,0.00019727,2]
[364283727,1749058238878,-517.25508792,0.00019727,2]
[364283728,1749058238887,-431.77385087,0.00019727,2]
[364283729,1749058238897,-430.0,0.00019727,2]
[364283730,1749058238907,-430.0,0.00019727,2]
[364283731,1749058238917,-430.0,0.00019727,2]
[364283733,1749058238929,-400.0,0.00019727,2]
[364283734,1749058238938,-430.0,0.00019727,2]
[364283736,1749058238947,-416.58471207,0.00019727,2]
[364283738,1749058238957,-430.0,0.00019727,2]
[364283740,1749058238967,-421.68695612,0.00019727,2]
[364283741,1749058238977,-430.0,0.00019727,2]
[364283743,1749058238986,-430.0,0.00019727,2]
[364283745,1749058238996,-350.0,0.00019727,2]
[364283747,1749058239005,-401.24960383,0.00019727,2]
[364283748,1749058239014,-450.0,0.00019727,2]
[364283751,1749058239024,-450.0,0.00019727,2]
[364283753,1749058239034,-430.0,0.00019727,2]
[364283754,1749058239043,-404.635832,0.00019727,2]
[364283756,1749058239053,-405.31662157,0.00019727,2]
[364283758,1749058239063,-430.0,0.00019727,2]
[364283760,1749058239072,-430.0,0.00019727,2]
[364283762,1749058239082,-430.0,0.00019727,2]
[364283763,1749058239092,-430.0,0.00019727,2]
[364283764,1749058239104,-430.0,0.00019727,2]
[364283765,1749058239114,-430.0,0.00019727,2]
[364283766,1749058239123,-430.0,0.00019727,2]
[364283767,1749058239134,-430.0,0.00019727,2]
[364283768,1749058239143,-430.0,0.00019727,2]
[364283769,1749058239154,-362.15540799,0.00019727,2]
[364283770,1749058239163,-421.25219529,0.00019727,2]
[364283771,1749058239174,-552.75987912,0.00019727,2]
[364283772,1749058239183,-430.0,0.00019727,2]
[364283773,1749058239193,-430.0,0.00019727,2]
[364283774,1749058239203,-415.7923205,0.00019727,2]
[364283775,1749058239212,-430.0,0.00019727,2]
[364283776,1749058239222,-340.0,0.00019727,2]
[364283777,1749058239231,-222.10181602,0.00019727,2]
[364283778,1749058239241,-430.0,0.00019727,2]
[364283779,1749058239251,-430.0,0.00019727,2]
[364283780,1749058239261,-430.0,0.00019727,2]
[364283781,1749058239270,-410.83201449,0.00019727,2]
[364283782,1749058239279,-430.0,0.00019727,2]
[364283783,1749058239289,-430.0,0.00019727,2]
[364283784,1749058239298,-430.0,0.00019727,2]
[364283785,1749058239308,-400.0,0.00019727,2]
[364283786,1749058239318,-430.0,0.00019727,2]
[364283787,1749058239328,-430.0,0.00019727,2]
[364283788,1749058239338,-430.0,0.00019727,2]
[364283789,1749058239350,-401.20884775,0.00019727,2]
[364283790,1749058239361,-430.0,0.00019727,2]
[364283791,1749058239370,-430.0,0.00019727,2]
[364283792,1749058239380,-430.0,0.00019727,2]
[364283793,1749058239391,-430.0,0.00019727,2]
[364283794,1749058239401,-430.0,0.00019727,2]
[364283795,1749058239410,-430.0,0.00019727,2]
[364283796,1749058239420,-430.0,0.00019727,2]
[364283797,1749058239431,-435.11483185,0.00019727,2]
[364283798,1749058239441,-430.0,0.00019727,2]
[364283799,1749058239451,-430.0,0.00019727,2]
[364283800,1749058239460,-430.0,0.00019727,2]
[364283801,1749058239470,-470.0,0.00019727,2]
[364283802,1749058239480,-356.28136341,0.00019727,2]
[364283803,1749058239492,-430.0,0.00019727,2]